fUSD/lending_fUSD_20250305
["ID","MTS","AMOUNT","RATE_DAILY","PERIOD"]
[355508548,1741213831699,-163.1550848,0.00011269,2]
[355508549,1741213831708,-998.356,0.000113,2]
[355508550,1741213831717,-12633.1717,0.000113,2]
[355508551,1741213831727,-251.17,0.00011397,2]
[355508552,1741213831736,-4688.5568698,0.00011398,2]
[355508553,1741213831746,-1000.0,0.00011398,2]
[355508554,1741213831755,-14175.04030258,0.00011398,2]
[355508555,1741213831790,-22159.53559742,0.00011398,2]
[355508556,1741213831799,-4688.55686975,0.00011398,2]
[355508557,1741213831809,-4688.55686975,0.00011398,2]
[355508558,1741213831819,-7717.327685,0.000114,2]
[355508559,1741213831829,-537.44293988,0.000114,2]
[355508560,1741213831838,-156.75948836,0.000114,2]
[355508561,1741213831848,-28045.9068861,0.000114,2]
[355508562,1741213831857,-217.90846751,0.000114,2]
[355508563,1741213831866,-307.74164499,0.00011473,2]
[355508564,1741213831876,-406.69797652,0.00011473,2]
[355508565,1741213831885,-500.0,0.00011497,2]
[355508566,1741213831894,-500.0,0.00011497,2]
[355508567,1741213831905,-500.0,0.00011497,2]
[355508568,1741213831915,-682.22,0.00011497,2]
[355508569,1741213831925,-500.0,0.00011497,2]
[355508570,1741213831934,-616.19,0.00011497,2]
[355508571,1741213831944,-669.73,0.00011497,2]
[355508572,1741213831954,-500.0,0.00011497,2]
[355508573,1741213831963,-970.57,0.00011497,2]
[355508574,1741213831973,-500.0,0.00011497,2]
[355508575,1741213831982,-641.4,0.00011497,2]
[355508576,1741213831992,-722.5,0.00011497,2]
[355508577,1741213832001,-645.42,0.00011497,2]
[355508578,1741213832010,-500.0,0.00011497,2]
[355508579,1741213832019,-3603.44,0.00011497,2]
[355508580,1741213832029,-660.12,0.00011497,2]
[355508581,1741213832038,-524.36,0.00011497,2]
[355508582,1741213832047,-500.0,0.00011497,2]
[355508583,1741213832057,-500.0,0.00011497,2]
[355508584,1741213832067,-500.0,0.00011497,2]
[355508585,1741213832076,-500.0,0.00011497,2]
[355508586,1741213832086,-500.0,0.00011497,2]
[355508587,1741213832095,-500.0,0.00011497,2]
[355508588,1741213832104,-2619.19,0.00011497,2]
[355508590,1741213832113,-500.0,0.00011497,2]
[355508592,1741213832123,-1247.332033,0.00011497,2]
[355508594,1741213832132,-500.0,0.00011497,2]
[355508596,1741213832141,-500.0,0.00011497,2]
[355508598,1741213832150,-512.84,0.00011497,2]
[355508600,1741213832159,-713.6,0.00011497,2]
[355508603,1741213832169,-502.36,0.00011497,2]
[355508606,1741213832178,-980.82,0.00011497,2]
[355508609,1741213832187,-500.0,0.00011497,2]
[355508611,1741213832196,-500.0,0.00011498,2]
[355508613,1741213832205,-500.0,0.00011498,2]
[355508614,1741213832214,-500.0,0.00011498,2]
[355508615,1741213832223,-500.0,0.00011498,2]
[355508616,1741213832232,-500.0,0.00011498,2]
[355508617,1741213832242,-500.0,0.00011498,2]
[355508618,1741213832251,-500.0,0.00011498,2]
[355508619,1741213832260,-500.0,0.00011498,2]
[355508620,1741213832270,-500.0,0.00011498,2]
[355508621,1741213832279,-500.0,0.00011498,2]
[355508622,1741213832288,-500.0,0.00011498,2]
[355508623,1741213832297,-500.0,0.00011498,2]
[355508624,1741213832306,-500.0,0.00011498,2]
[355508625,1741213832318,-500.0,0.00011498,2]
[355508626,1741213832327,-500.0,0.00011498,2]
[355508627,1741213832336,-500.0,0.00011498,2]
[355508628,1741213832346,-500.0,0.00011498,2]
[355508629,1741213832355,-500.0,0.00011498,2]
[355508630,1741213832363,-500.0,0.00011498,2]
[355508631,1741213832373,-500.0,0.00011498,2]
[355508632,1741213832382,-500.0,0.00011498,2]
[355508633,1741213832391,-500.0,0.00011498,2]
[355508634,1741213832401,-500.0,0.00011498,2]
[355508635,1741213832410,-500.0,0.00011498,2]
[355508636,1741213832419,-500.0,0.00011498,2]
[355508637,1741213832429,-500.0,0.00011498,2]
[355508638,1741213832438,-500.0,0.00011498,2]
[355508639,1741213832447,-530.88,0.00011498,2]
[355508640,1741213832457,-500.0,0.00011498,2]
[355508641,1741213832466,-500.0,0.00011498,2]
[355508642,1741213832475,-500.0,0.00011498,2]
[355508643,1741213832485,-500.0,0.00011498,2]
[355508644,1741213832494,-500.0,0.00011498,2]
[355508645,1741213832503,-500.0,0.00011498,2]
[355508646,1741213832512,-500.0,0.00011498,2]
[355508647,1741213832521,-500.0,0.00011498,2]
[355508648,1741213832531,-500.0,0.00011498,2]
[355508649,1741213832541,-864.42,0.00011498,2]
[355508650,1741213832550,-541.062727,0.00011498,2]
[355508651,1741213832559,-500.0,0.00011498,2]
[355508652,1741213832570,-500.0,0.00011498,2]
[355508653,1741213832582,-500.0,0.00011498,2]
[355508654,1741213832591,-500.0,0.00011498,2]
[355508655,1741213832601,-500.0,0.00011498,2]
[355508656,1741213832610,-500.0,0.00011498,2]
[355508657,1741213832619,-500.0,0.00011498,2]
[355508658,1741213832628,-500.0,0.00011498,2]
[355508659,1741213832638,-500.0,0.00011498,2]
[355508660,1741213832648,-500.0,0.00011498,2]
[355508661,1741213832659,-500.0,0.00011498,2]
[355508662,1741213832669,-500.0,0.00011498,2]
[355508663,1741213832678,-500.0,0.00011498,2]
[355508664,1741213832688,-500.0,0.00011498,2]
[355508665,1741213832698,-500.0,0.00011498,2]
[355508666,1741213832708,-500.0,0.00011498,2]
[355508667,1741213832717,-500.0,0.00011498,2]
[355508668,1741213832726,-500.0,0.00011498,2]
[355508669,1741213832735,-500.0,0.00011498,2]
[355508670,1741213832745,-500.0,0.00011498,2]
[355508671,1741213832755,-500.0,0.00011498,2]
[355508672,1741213832765,-500.0,0.00011498,2]
[355508673,1741213832775,-500.0,0.00011498,2]
[355508674,1741213832784,-500.0,0.00011498,2]
[355508675,1741213832794,-500.0,0.00011498,2]
[355508676,1741213832803,-500.0,0.00011498,2]
[355508677,1741213832814,-500.0,0.00011498,2]
[355508678,1741213832825,-500.0,0.00011498,2]
[355508679,1741213832835,-500.0,0.00011498,2]
[355508680,1741213832844,-500.0,0.00011498,2]
[355508681,1741213832855,-500.0,0.00011498,2]
[355508682,1741213832864,-500.0,0.00011498,2]
[355508683,1741213832874,-500.0,0.00011498,2]
[355508684,1741213832884,-500.0,0.00011498,2]
[355508685,1741213832894,-500.0,0.00011498,2]
[355508686,1741213832903,-500.0,0.00011498,2]
[355508687,1741213832913,-500.0,0.00011498,2]
[355508688,1741213832923,-500.0,0.00011498,2]
[355508689,1741213832933,-500.0,0.00011498,2]
[355508690,1741213832943,-500.0,0.00011498,2]
[355508691,1741213832953,-500.0,0.00011498,2]
[355508692,1741213832964,-500.0,0.00011498,2]
[355508693,1741213832974,-543.02,0.00011498,2]
[355508694,1741213832983,-500.0,0.00011498,2]
[355508695,1741213832992,-500.0,0.00011498,2]
[355508696,1741213833001,-500.0,0.00011498,2]
[355508697,1741213833011,-500.0,0.00011498,2]
[355508698,1741213833021,-500.0,0.00011498,2]
[355508699,1741213833031,-692.48,0.00011498,2]
[355508700,1741213833041,-786.44,0.00011498,2]
[355508701,1741213833050,-500.0,0.00011498,2]
[355508702,1741213833060,-500.0,0.00011498,2]
[355508703,1741213833072,-500.0,0.00011498,2]
[355508704,1741213833082,-553.35,0.00011498,2]
[355508705,1741213833093,-655.72,0.00011498,2]
[355508706,1741213833105,-516.56,0.00011498,2]
[355508707,1741213833115,-500.0,0.00011498,2]
[355508708,1741213833125,-525.52,0.00011498,2]
[355508709,1741213833135,-1684.12,0.00011498,2]
[355508710,1741213833145,-536.12,0.00011498,2]
[355508711,1741213833155,-500.0,0.00011498,2]
[355508712,1741213833165,-500.0,0.00011498,2]
[355508713,1741213833393,-500.0,0.00011498,2]
[355508714,1741213833402,-500.0,0.00011498,2]
[355508715,1741213833412,-1458.46,0.00011498,2]
[355508716,1741213833421,-500.0,0.00011498,2]
[355508717,1741213833430,-500.0,0.00011498,2]
[355508718,1741213833439,-500.0,0.00011498,2]
[355508719,1741213833449,-1103.31,0.00011498,2]
[355508720,1741213833459,-517.72,0.00011498,2]
[355508721,1741213833468,-500.0,0.00011498,2]
[355508722,1741213833478,-546.46,0.00011498,2]
[355508723,1741213833487,-578.3,0.00011498,2]
[355508724,1741213833496,-598.2,0.00011498,2]
[355508725,1741213833506,-525.52,0.00011498,2]
[355508726,1741213833516,-500.0,0.00011498,2]
[355508727,1741213833526,-3067.18,0.00011498,2]
[355508728,1741213833535,-500.0,0.00011498,2]
[355508729,1741213833544,-546.67,0.00011498,2]
[355508730,1741213833554,-500.0,0.00011498,2]
[355508731,1741213833563,-500.0,0.00011498,2]
[355508732,1741213833575,-500.0,0.00011498,2]
[355508733,1741213833585,-867.6,0.00011498,2]
[355508734,1741213833594,-648.22,0.00011498,2]
[355508735,1741213833604,-622.7,0.00011498,2]
[355508736,1741213833615,-500.0,0.00011498,2]
[355508737,1741213833625,-514.14,0.00011498,2]
[355508738,1741213833634,-527.89,0.00011498,2]
[355508739,1741213833643,-581.55,0.00011498,2]
[355508740,1741213833653,-500.0,0.00011498,2]
[355508741,1741213833663,-997.38,0.00011498,2]
[355508742,1741213833673,-500.0,0.00011498,2]
[355508743,1741213833681,-500.0,0.00011498,2]
[355508744,1741213833691,-500.0,0.00011498,2]
[355508745,1741213833700,-540.89,0.00011498,2]
[355508746,1741213833709,-2155.6,0.00011498,2]
[355508747,1741213833719,-233.6041358,0.00011498,2]
[355508748,1741213833728,-500.0,0.00011498,2]
[355508749,1741213833737,-539.48,0.00011498,2]
[355508750,1741213833747,-500.0,0.00011498,2]
[355508751,1741213833756,-500.0,0.00011498,2]
[355508752,1741213833765,-500.0,0.00011498,2]
[355508753,1741213833774,-500.0,0.00011498,2]
[355508754,1741213833784,-500.0,0.00011498,2]
[355508755,1741213833793,-500.0,0.00011498,2]
[355508756,1741213833803,-500.0,0.00011498,2]
[355508757,1741213833812,-504.25,0.00011498,2]
[355508758,1741213833822,-500.0,0.00011498,2]
[355508759,1741213833832,-3883.18,0.00011498,2]
[355508760,1741213833842,-500.0,0.00011498,2]
[355508761,1741213833851,-921.38,0.00011498,2]
[355508762,1741213833861,-519.62,0.00011498,2]
[355508763,1741213833871,-500.0,0.00011498,2]
[355508764,1741213833881,-500.0,0.00011498,2]
[355508765,1741213833890,-500.0,0.00011498,2]
[355508766,1741213833899,-768.3,0.00011498,2]
[355508767,1741213833909,-500.0,0.00011498,2]
[355508768,1741213833919,-500.0,0.00011498,2]
[355508769,1741213833928,-500.0,0.00011498,2]
[355508770,1741213833937,-500.0,0.00011498,2]
[355508771,1741213833947,-925.92,0.00011498,2]
[355508772,1741213833957,-500.0,0.00011498,2]
[355508773,1741213833967,-1912.72,0.00011498,2]
[355508774,1741213833976,-500.0,0.00011498,2]
[355508775,1741213833986,-1155.74,0.00011498,2]
[355508776,1741213833995,-500.0,0.00011498,2]
[355508777,1741213834005,-500.0,0.00011498,2]
[355508778,1741213834014,-500.0,0.00011498,2]
[355508779,1741213834023,-529.18,0.00011498,2]
[355508780,1741213834033,-511.53,0.00011498,2]
[355508781,1741213834043,-7777.44,0.00011498,2]
[355508782,1741213834052,-500.0,0.00011498,2]
[355508783,1741213834061,-500.0,0.00011498,2]
[355508784,1741213834072,-500.0,0.00011498,2]
[355508785,1741213834082,-500.0,0.00011498,2]
[355508786,1741213834091,-500.0,0.00011498,2]
[355508787,1741213834101,-1414.31,0.00011498,2]
[355508788,1741213834110,-608.63,0.00011498,2]
[355508789,1741213834120,-1398.78,0.00011498,2]
[355508790,1741213834129,-500.0,0.00011498,2]
[355508791,1741213834138,-500.0,0.00011498,2]
[355508792,1741213834148,-872.56,0.00011498,2]
[355508793,1741213834157,-500.0,0.00011498,2]
[355508794,1741213834167,-500.0,0.00011498,2]
[355508795,1741213834176,-500.0,0.00011498,2]
[355508796,1741213834185,-934.05,0.00011498,2]
[355508797,1741213834195,-8792.83,0.00011498,2]
[355508798,1741213834205,-1464.23,0.00011498,2]
[355508799,1741213834214,-500.0,0.00011498,2]
[355508800,1741213834223,-500.0,0.00011498,2]
[355508801,1741213834233,-500.0,0.00011498,2]
[355508802,1741213834243,-549.15,0.00011498,2]
[355508803,1741213834252,-985.43,0.00011498,2]
[355508804,1741213834262,-695.62,0.00011498,2]
[355508805,1741213834272,-500.0,0.00011499,2]
[355508806,1741213834282,-203.78490011,0.00011499,2]
[355508807,1741213834291,-225.20113356,0.00011499,2]
[355508808,1741213834300,-500.0,0.00011499,2]
[355508809,1741213834310,-500.0,0.00011499,2]
[355508810,1741213834319,-500.0,0.00011499,2]
[355508811,1741213834329,-500.0,0.00011499,2]
[355508812,1741213834338,-500.0,0.00011499,2]
[355508813,1741213834348,-500.0,0.00011499,2]
[355508814,1741213834357,-500.0,0.00011499,2]
[355508815,1741213834366,-500.0,0.00011499,2]
[355508816,1741213834375,-500.0,0.00011499,2]
[355508817,1741213834384,-500.0,0.00011499,2]
[355508818,1741213834393,-500.0,0.00011499,2]
[355508819,1741213834402,-500.0,0.00011499,2]
[355508820,1741213834412,-500.0,0.00011499,2]
[355508821,1741213834422,-500.0,0.00011499,2]
[355508822,1741213834431,-500.0,0.00011499,2]
[355508823,1741213834441,-500.0,0.00011499,2]
[355508824,1741213834450,-500.0,0.00011499,2]
[355508825,1741213834460,-500.0,0.00011499,2]
[355508826,1741213834470,-181.32689404,0.00011499,2]
[355508827,1741213834479,-500.0,0.00011499,2]
[355508828,1741213834488,-500.0,0.00011499,2]
[355508829,1741213834497,-500.0,0.00011499,2]
[355508830,1741213834506,-500.0,0.00011499,2]
[355508831,1741213834516,-523.9774817,0.00011499,2]
[355508832,1741213834525,-500.0,0.00011499,2]
[355508833,1741213834534,-232.40537657,0.00011499,2]
[355508834,1741213834543,-398.94019981,0.00011499,2]
[355508835,1741213834553,-500.0,0.00011499,2]
[355508836,1741213834562,-500.0,0.00011499,2]
[355508837,1741213834574,-500.0,0.00011499,2]
[355508838,1741213834587,-500.0,0.00011499,2]
[355508839,1741213834596,-3731.64,0.00011499,2]
[355508840,1741213834605,-500.0,0.00011499,2]
[355508841,1741213834615,-500.0,0.00011499,2]
[355508842,1741213834626,-500.0,0.00011499,2]
[355508843,1741213834635,-500.0,0.00011499,2]
[355508844,1741213834647,-500.0,0.00011499,2]
[355508845,1741213834659,-500.0,0.00011499,2]
[355508846,1741213834669,-616.83176496,0.00011499,2]
[355508847,1741213834678,-151.0,0.00011499,2]
[355508848,1741213834688,-500.0,0.00011499,2]
[355508849,1741213834697,-500.0,0.00011499,2]
[355508850,1741213834707,-500.0,0.00011499,2]
[355508851,1741213834716,-500.0,0.00011499,2]
[355508852,1741213834725,-500.0,0.00011499,2]
[355508853,1741213834735,-500.0,0.00011499,2]
[355508854,1741213834744,-500.0,0.00011499,2]
[355508855,1741213834754,-500.0,0.00011499,2]
[355508856,1741213834763,-1830.63,0.00011499,2]
[355508857,1741213834772,-1000.0,0.00011499,2]
[355508858,1741213834783,-1854.06,0.00011499,2]
[355508859,1741213834793,-500.0,0.00011499,2]
[355508860,1741213834803,-1314.86,0.00011499,2]
[355508861,1741213834812,-535.76224215,0.00011499,2]
[355508862,1741213834821,-934.81,0.00011499,2]
[355508863,1741213834829,-500.0,0.00011499,2]
[355508864,1741213834839,-500.0,0.00011499,2]
[355508865,1741213834848,-598.93,0.00011499,2]
[355508866,1741213834857,-500.0,0.00011499,2]
[355508867,1741213834867,-1391.96,0.00011499,2]
[355508868,1741213834876,-500.0,0.00011499,2]
[355508869,1741213834886,-500.0,0.00011499,2]
[355508870,1741213834895,-500.0,0.00011499,2]
[355508871,1741213834905,-3611.23,0.00011499,2]
[355508872,1741213834914,-500.0,0.00011499,2]
[355508873,1741213834923,-500.0,0.00011499,2]
[355508874,1741213834932,-230.64143327,0.00011499,2]
[355508875,1741213834941,-1312.69,0.00011499,2]
[355508876,1741213834951,-500.0,0.00011499,2]
[355508877,1741213834960,-500.0,0.00011499,2]
[355508878,1741213834969,-500.0,0.00011499,2]
[355508879,1741213834979,-500.0,0.00011499,2]
[355508880,1741213834989,-500.0,0.00011499,2]
[355508881,1741213834998,-500.0,0.00011499,2]
[355508882,1741213835007,-500.0,0.00011499,2]
[355508883,1741213835016,-500.0,0.00011499,2]
[355508884,1741213835025,-500.0,0.00011499,2]
[355508885,1741213835035,-500.0,0.00011499,2]
[355508886,1741213835044,-500.0,0.00011499,2]
[355508887,1741213835053,-671.27792342,0.00011499,3]
[355508888,1741213835062,-72253.75380882,0.000115,2]
[355508901,1741213837560,-1808.7,0.00011399,2]
[355508902,1741213837572,-2879.85686975,0.00011399,2]
[355508903,1741213837585,-500.0,0.00011498,2]
[355508904,1741213837595,-500.0,0.00011499,2]
[355508905,1741213837604,-86499.64493782,0.000115,2]
[355508906,1741213837664,-280.0,0.000115,2]
[355509050,1741213839716,-513.49251298,0.00011398,2]
[355509051,1741213839725,-4688.55686975,0.00011399,2]
[355509052,1741213839735,-695.04,0.00011497,2]
[355509053,1741213839745,-500.0,0.00011498,2]
[355509054,1741213839755,-1354197.69191431,0.000115,2]
[355509055,1741213839764,-897.31,0.000115,2]
[355509056,1741213839773,-6517253.54906558,0.000115,2]
[355509057,1741213839966,-500.0,0.00011497,2]
[355509058,1741213839977,-628.4,0.00011498,2]
[355509059,1741213839987,-7017.05019292,0.000115,2]
[355509060,1741213840250,-1071.07945002,0.000115,2]
[355509095,1741213842594,-500.0,0.00011497,2]
[355509097,1741213842604,-3399.6,0.000115,2]
[355509099,1741213842616,-3638.75,0.000115,2]
[355509188,1741213843469,-220051.96483228,0.000115,2]
[355509406,1741213845551,-756.61599878,0.000113,2]
[355509414,1741213845654,-7308.41273936,0.000113,2]
[355509416,1741213845666,-4688.55686975,0.00011399,2]
[355509418,1741213845675,-500.0,0.00011498,2]
[355509420,1741213845686,-500.0,0.00011498,2]
[355509422,1741213845695,-262.64535583,0.000115,2]
[355509425,1741213845711,-4093.55763455,0.000115,2]
[355509427,1741213845721,-606.44236545,0.000115,2]
[355509434,1741213845778,-16098.186532,0.000115,2]
[355509641,1741213854638,4013.43239403,0.0001,2]
[355509642,1741214067090,502.19,8.858e-05,2]
[355509643,1741214510297,235.030607,0.0002,120]
[355509662,1741215031730,-669.94135029,0.00010532,2]
[355509663,1741215031742,-298.86,0.00010532,2]
[355509664,1741215031767,-31.19864971,0.00010532,2]
[355509665,1741215031777,-250.0,0.00010575,2]
[355509666,1741215031786,-292.72,0.00010666,2]
[355509667,1741215031795,-284.17,0.0001085,2]
[355509668,1741215031805,-200.0,0.00010959,2]
[355509669,1741215031814,-201.68675088,0.00011007,2]
[355509670,1741215031823,-201.68675088,0.00011014,2]
[355509671,1741215031833,-2259.4986411,0.00011036,2]
[355509672,1741215031843,-2259.4986411,0.00011058,2]
[355509673,1741215031852,-2259.4986411,0.00011079,2]
[355509674,1741215031862,-285.50217552,0.0001108,2]
[355509675,1741215031871,-201.68675088,0.00011089,2]
[355509676,1741215031881,-285.50217552,0.00011096,2]
[355509677,1741215031890,-285.50217552,0.00011097,2]
[355509678,1741215031900,-502.19,0.00011122,2]
[355509679,1741215031914,-163.1550848,0.00011269,2]
[355509680,1741215031924,-487.17137817,0.000113,2]
[355509681,1741215031942,-392.89862183,0.000113,2]
[355509682,1741215031954,-300.0,0.00011398,2]
[355509683,1741215031964,-2289.13448641,0.00011398,2]
[355509684,1741215031974,-1623.9163,0.00011398,2]
[355509685,1741215031985,-267.7106,0.00011398,2]
[355509686,1741215031995,-2289.13448639,0.00011398,2]
[355509687,1741215032005,-2289.13448639,0.00011398,2]
[355509688,1741215032015,-135.57101898,0.00011399,2]
[355509689,1741215032050,-880.53352,0.00011399,2]
[355509691,1741215032061,-983.89546102,0.00011399,2]
[355509693,1741215032071,-4555.72053643,0.00011399,2]
[355509695,1741215032082,-11556.02017621,0.00011399,2]
[355509696,1741215032093,-989.38928736,0.00011399,2]
[355509698,1741215032103,-2166.09377339,0.00011399,2]
[355509731,1741215037863,-467.67054885,0.00011399,2]
[355509732,1741215037898,-1814.0,0.00011399,2]
[355509742,1741215039939,-7.46393754,0.00011399,2]
[355509743,1741215039951,-824.90271269,0.00011399,2]
[355509744,1741215039991,-3820.43373613,0.00011399,2]
[355509745,1741215040001,-5276.20999501,0.000114,2]
[355509746,1741215040013,-425.92450499,0.000114,2]
[355509747,1741215040022,-171.49791752,0.000114,2]
[355509748,1741215040032,-1243.262,0.000114,2]
[355509749,1741215040042,-4272.64385302,0.000114,2]
[355509750,1741215040051,-328.26804308,0.000114,2]
[355509751,1741215040061,-500.0,0.00011497,2]
[355509752,1741215040071,-500.0,0.00011497,2]
[355509753,1741215040081,-500.0,0.00011497,2]
[355509754,1741215040090,-602.02,0.00011497,2]
[355509755,1741215040099,-403.60247612,0.00011497,2]
[355509756,1741215040111,-96.39752388,0.00011497,2]
[355509757,1741215040121,-500.0,0.00011497,2]
[355509758,1741215040130,-500.0,0.00011497,2]
[355509759,1741215040139,-500.0,0.00011497,2]
[355509760,1741215040148,-500.0,0.00011497,2]
[355509761,1741215040157,-500.0,0.00011497,2]
[355509762,1741215040167,-519.01519518,0.00011497,2]
[355509763,1741215040177,-500.0,0.00011497,2]
[355509764,1741215040186,-500.0,0.00011497,2]
[355509765,1741215040195,-500.0,0.00011497,2]
[355509766,1741215040204,-500.0,0.00011497,2]
[355509767,1741215040214,-500.0,0.00011497,2]
[355509768,1741215040223,-500.0,0.00011497,2]
[355509769,1741215040232,-500.0,0.00011497,2]
[355509770,1741215040241,-500.0,0.00011497,2]
[355509771,1741215040251,-500.0,0.00011497,2]
[355509772,1741215040260,-503.4,0.00011497,2]
[355509773,1741215040270,-500.0,0.00011497,2]
[355509775,1741215040279,-324.97114556,0.00011497,2]
[355509776,1741215040291,-175.02885444,0.00011497,2]
[355509777,1741215040300,-500.0,0.00011497,2]
[355509778,1741215040309,-500.0,0.00011497,2]
[355509779,1741215040319,-500.0,0.00011497,2]
[355509780,1741215040329,-500.0,0.00011497,2]
[355509781,1741215040339,-150.03346719,0.00011497,2]
[355509782,1741215040348,-500.0,0.00011497,2]
[355509783,1741215040358,-500.0,0.00011497,2]
[355509784,1741215040368,-500.0,0.00011497,2]
[355509785,1741215040377,-500.0,0.00011497,2]
[355509786,1741215040387,-500.0,0.00011497,2]
[355509787,1741215040396,-500.0,0.00011497,2]
[355509788,1741215040405,-500.0,0.00011497,2]
[355509789,1741215040415,-500.0,0.00011497,2]
[355509790,1741215040424,-501.50586838,0.00011497,2]
[355509791,1741215040434,-500.0,0.00011497,2]
[355509792,1741215040444,-500.0,0.00011497,2]
[355509793,1741215040453,-284.38948286,0.00011497,2]
[355509794,1741215040463,-500.0,0.00011497,2]
[355509795,1741215040472,-466.59098865,0.00011497,2]
[355509796,1741215040485,-33.40901135,0.00011497,2]
[355509797,1741215040495,-500.0,0.00011497,2]
[355509798,1741215040505,-500.0,0.00011497,2]
[355509799,1741215040514,-500.0,0.00011497,2]
[355509800,1741215040523,-500.0,0.00011497,2]
[355509801,1741215040532,-500.0,0.00011497,2]
[355509802,1741215040542,-500.0,0.00011497,2]
[355509803,1741215040551,-500.0,0.00011497,2]
[355509804,1741215040561,-500.0,0.00011497,2]
[355509805,1741215040570,-508.76,0.00011497,2]
[355509806,1741215040580,-500.0,0.00011497,2]
[355509807,1741215040591,-828.4,0.00011497,2]
[355509808,1741215040600,-500.0,0.00011497,2]
[355509809,1741215040609,-500.0,0.00011497,2]
[355509810,1741215040619,-500.0,0.00011497,2]
[355509811,1741215040628,-500.0,0.00011497,2]
[355509812,1741215040638,-500.0,0.00011497,2]
[355509813,1741215040647,-500.0,0.00011497,2]
[355509814,1741215040656,-73.27122354,0.00011497,2]
[355509815,1741215040698,-426.72877646,0.00011497,2]
[355509816,1741215040707,-500.0,0.00011497,2]
[355509817,1741215040716,-500.0,0.00011497,2]
[355509818,1741215040726,-350.37,0.00011497,2]
[355509819,1741215040735,-500.0,0.00011497,2]
[355509820,1741215040745,-222.90122354,0.00011497,2]
[355509831,1741215043937,-2289.13448639,0.00011399,2]
[355509832,1741215043947,-83.20877646,0.00011497,2]
[355509833,1741215043957,-500.0,0.00011497,2]
[355509834,1741215043967,-500.0,0.00011497,2]
[355509835,1741215043976,-500.0,0.00011497,2]
[355509836,1741215043987,-500.0,0.00011497,2]
[355509837,1741215043996,-500.0,0.00011497,2]
[355509838,1741215044008,-500.0,0.00011497,2]
[355509839,1741215044017,-500.0,0.00011497,2]
[355509840,1741215044027,-500.0,0.00011497,2]
[355509841,1741215044037,-500.0,0.00011497,2]
[355509842,1741215044047,-500.0,0.00011497,2]
[355509843,1741215044056,-500.0,0.00011497,2]
[355509844,1741215044066,-500.0,0.00011497,2]
[355509845,1741215044075,-500.0,0.00011497,2]
[355509846,1741215044085,-500.0,0.00011497,2]
[355509847,1741215044095,-500.0,0.00011497,2]
[355509848,1741215044104,-444.12252413,0.00011497,2]
[355509849,1741215044114,-500.0,0.00011497,2]
[355509850,1741215044123,-520.4,0.00011497,2]
[355509851,1741215044133,-500.0,0.00011497,2]
[355509852,1741215044143,-500.0,0.00011497,2]
[355509853,1741215044153,-500.0,0.00011497,2]
[355509854,1741215044162,-500.0,0.00011497,2]
[355509855,1741215044171,-500.0,0.00011497,2]
[355509856,1741215044180,-500.0,0.00011497,2]
[355509857,1741215044189,-500.0,0.00011497,2]